bitfinex/quotes_SOLUSD_20260310
["timestamp","ask_amount","ask_price","bid_price","bid_amount"]
[1773168619355,1.68016525,86.559,86.52,11.00593858]
[1773168619853,3.69383402,86.575,86.49,57.8094932]
[1773168619854,1.68016525,86.539,86.5,11.00593858]
[1773168620058,1.68016525,86.549,86.51,11.00593858]
[1773168620455,1.68016525,86.547,86.51,11.00593858]
[1773168620849,1.68016525,86.539,86.5,11.00593858]
[1773168621054,1.68016525,86.539,86.328,19.30052968]
[1773168621055,1.68016525,86.529,86.468,11.56497201]
[1773168621248,1.68016525,86.499,86.462,41.64301384]
[1773168621448,1.68016525,86.499,86.463,1.71533642]
[1773168621660,1.68016525,86.499,86.463,13.28097721]
[1773168622071,11.00593858,86.49,86.454,1.71533642]
[1773168622371,1.68016525,86.499,86.46,11.00593858]
[1773168622571,11.56096094,86.498,86.462,13.28111097]
[1773168623071,11.56096094,86.498,86.463,1.71533642]
[1773168623072,40.4633633,86.498,86.463,1.71533642]
[1773168623252,1.68016525,86.489,86.457,11.56634137]
[1773168623657,1.68016525,86.489,86.453,11.56696118]
[1773168624059,1.68016525,86.489,86.454,1.71533642]
[1773168624467,11.56229765,86.488,86.454,1.71533642]
[1773168624763,11.5610946,86.497,86.461,1.71533642]
[1773168624968,11.55922368,86.511,86.48,12.721275]
[1773168625554,11.00593858,86.51,86.48,1.71533642]
[1773168625750,11.00593858,86.51,86.47,11.00593858]
[1773168625751,1.68016525,86.509,86.469,1.71533642]
[1773168625955,1.68016525,86.509,86.47,11.00593858]
[1773168626778,11.55962454,86.508,86.471,11.56457078]
[1773168626966,1.68016525,86.507,86.471,11.56457078]
[1773168627564,1.68016525,86.507,86.47,11.00593858]
[1773168627768,1.68016525,86.499,86.46,11.56600456]
[1773168628079,1.68016525,86.499,86.46,24.28727956]
[1773168628277,1.68016525,86.499,86.461,1.71533642]
[1773168629273,1.68016525,86.497,86.462,11.56577455]
[1773168629473,40.4633633,86.498,86.453,1.71533642]
[1773168629668,11.00593858,86.49,86.453,1.71533642]
[1773168630068,1.68016525,86.497,86.453,1.71533642]
[1773168630486,1.68016525,86.497,86.461,1.71533642]
[1773168631181,11.00593858,86.49,86.461,1.71533642]
[1773168631364,11.56216397,86.489,86.461,1.71533642]
[1773168631672,1.68016525,86.479,86.444,11.56807807]
[1773168631878,1.68016525,86.479,86.45,11.00593858]
[1773168632076,42.14773915,86.489,86.45,12.721275]
[1773168632381,1.68016525,86.479,86.444,11.56807807]
[1773168632777,11.56082729,86.499,86.47,11.00593858]
[1773168633085,12.68610383,86.51,86.471,1.71533642]
[1773168633299,1.68016525,86.499,86.461,1.71533642]
[1773168633468,1.68016525,86.497,86.462,11.56577455]
[1773168633784,1.68016525,86.497,86.47,11.00593858]
[1773168633962,11.56046881,86.502,86.47,11.00593858]
[1773168634162,11.56046881,86.502,86.471,1.71533642]
[1773168634362,1.68016525,86.499,86.462,13.28111097]
[1773168634563,1.68016525,86.49,86.462,11.56577455]
[1773168634795,1.68016525,86.489,86.453,11.56697858]
[1773168635092,1.68016525,86.489,86.46,11.00593858]
[1773168635299,1.68016525,86.499,86.46,11.00593858]
[1773168635466,1.68016525,86.507,86.471,11.56457078]
[1773168636095,12.68610383,86.5,86.471,11.56457078]
[1773168636587,40.45868589,86.508,86.472,1.71533642]
[1773168636966,1.68016525,86.507,86.472,1.71533642]
[1773168637189,13.24002639,86.507,86.474,1.71533642]
[1773168638183,1.68016525,86.506,86.474,1.71533642]
[1773168638887,11.55548365,86.539,86.501,1.71533642]
[1773168639070,11.55014495,86.579,86.531,1.71533642]
[1773168639269,11.55014495,86.579,86.53,11.00593858]
[1773168639270,1.68016525,86.581,86.55,11.00593858]
[1773168639583,1.68016525,86.581,86.55,12.721275]
[1773168639891,1.68016525,86.579,86.55,11.00593858]
[1773168640775,1.68016525,86.59,86.56,11.00593858]
[1773168641199,11.00593858,86.6,86.561,1.71533642]
[1773168641487,11.00593858,86.6,86.571,1.71533642]
[1773168641691,11.54614416,86.609,86.55,22.55993988]
[1773168641692,1.68016525,86.589,86.55,22.55993988]
[1773168641991,11.54614416,86.609,86.57,11.00593858]
[1773168641992,1.68016525,86.6,86.57,11.00593858]
[1773168642369,11.54614416,86.609,86.581,1.71533642]
[1773168642974,11.54614416,86.609,86.58,11.00593858]
[1773168643376,13.22630941,86.609,86.58,11.00593858]
[1773168644265,0.2,86.61,86.582,1.71533642]
[1773168644470,13.22630941,86.609,86.58,11.00593858]
[1773168644670,13.22630941,86.609,86.57,11.00593858]
[1773168644671,1.68016525,86.608,86.57,11.00593858]
[1773168645288,13.22776065,86.599,86.571,11.55121229]
[1773168645469,1.68016525,86.598,86.57,11.00593858]
[1773168645669,1.68016525,86.598,86.57,22.55726925]
[1773168645876,1.68016525,86.608,86.58,11.00593858]
[1773168646078,13.22657449,86.608,86.58,11.00593858]
[1773168646770,13.22657449,86.608,86.571,1.71533642]
[1773168647081,13.22657449,86.608,86.58,11.00593858]
[1773168647280,1.76998268,86.607,86.572,11.55107887]
[1773168647483,1.76998268,86.599,86.56,12.67310568]
[1773168648070,1.76998268,86.599,86.56,11.00593858]
[1773168648274,1.76998268,86.597,86.56,11.00593858]
[1773168649382,1.71129835,86.595,86.56,22.5586188]
[1773168649689,1.71129835,86.595,86.56,11.55268022]
[1773168649888,1.71129835,86.595,86.56,22.5586188]
[1773168650190,11.00593858,86.59,86.55,11.00593858]
[1773168650395,1.71129835,86.569,86.53,11.00593858]
[1773168650591,1.71129835,86.569,86.531,1.71077904]
[1773168650997,1.71129835,86.569,86.524,11.55746191]
[1773168650998,1.71129835,86.559,86.524,11.55746191]
[1773168651194,12.71723693,86.57,86.531,1.71077904]
[1773168651496,1.71129835,86.596,86.561,1.71077904]
[1773168651674,11.54801085,86.595,86.561,1.71077904]
[1773168651876,1.71129835,86.589,86.541,40.4432581]
[1773168652081,1.71129835,86.589,86.55,11.00593858]
[1773168652592,1.71129835,86.589,86.56,11.00593858]
[1773168652794,1.71129835,86.589,86.551,1.71077904]
[1773168653295,11.5466278,86.606,86.58,11.00593858]
[1773168653501,0.2,86.61,86.582,1.71077904]
[1773168653685,1.71129835,86.609,86.573,1.71077904]
[1773168653872,1.71129835,86.609,86.57,22.55719335]
[1773168654886,1.71129835,86.607,86.57,22.55719335]
[1773168655977,1.71129835,86.607,86.57,11.00593858]
[1773168656172,1.71129835,86.599,86.56,11.00593858]
[1773168656396,1.71129835,86.589,86.55,11.00593858]
[1773168656603,1.71129835,86.588,86.55,11.00593858]
[1773168656793,11.5490778,86.587,86.56,11.00593858]
[1773168657502,11.54761079,86.598,86.571,1.71077904]
[1773168657800,1.71129835,86.604,86.571,1.71077904]
[1773168658000,1.71129835,86.604,86.57,11.00593858]
[1773168658891,1.71129835,86.599,86.562,11.55241329]
[1773168659095,1.71129835,86.599,86.56,11.00593858]
[1773168659481,1.71129835,86.589,86.551,1.71077904]
[1773168659691,40.41430435,86.603,86.54,11.00593858]
[1773168659692,1.71129835,86.579,86.54,11.00593858]
[1773168660182,1.71129835,86.579,86.55,11.00593858]
[1773168660384,1.71129835,86.577,86.54,11.00593858]
[1773168660986,1.71129835,86.577,86.551,11.55388152]
[1773168661394,1.71129835,86.576,86.541,11.5552166]
[1773168661592,1.71129835,86.576,86.55,11.00593858]
[1773168661807,1.71129835,86.576,86.541,11.5552166]
[1773168662409,1.71129835,86.569,86.541,11.5552166]
[1773168662811,1.71129835,86.576,86.541,11.5552166]
[1773168662988,28.87302528,86.587,86.551,1.71077904]
[1773168662989,11.5506786,86.575,86.551,1.71077904]
[1773168663307,11.5506786,86.575,86.541,40.4432581]
[1773168663610,11.5506786,86.575,86.542,1.71077904]
[1773168663812,1.71129835,86.574,86.542,1.71077904]
[1773168664293,1.71129835,86.574,86.541,11.5552166]
[1773168665210,11.5506786,86.575,86.541,11.5552166]
[1773168665211,1.71129835,86.585,86.551,1.71077904]
[1773168665409,1.71129835,86.589,86.55,11.00593858]
[1773168665595,1.71129835,86.587,86.55,10.97988463]
[1773168666090,1.71129835,86.579,86.541,11.5552166]
[1773168666296,1.71129835,86.579,86.55,10.97988463]
[1773168666793,1.71129835,86.579,86.541,13.26599564]
[1773168666997,1.71129835,86.579,86.541,11.5552166]
[1773168667307,1.71129835,86.577,86.541,11.5552166]
[1773168668491,1.71129835,86.569,86.541,11.5552166]
[1773168668691,1.71129835,86.559,86.531,11.55655198]
[1773168669506,1.71129835,86.576,86.54,10.97988463]
[1773168670205,1.71129835,86.569,86.537,1.71077904]
[1773168670402,1.71129835,86.569,86.531,42.15871098]
[1773168671209,1.71129835,86.549,86.504,1.71077904]
[1773168671409,1.71129835,86.547,86.511,11.55922368]
[1773168671717,1.71129835,86.547,86.512,1.71077904]
[1773168671920,1.71129835,86.539,86.511,11.55922368]
[1773168674106,11.55561718,86.538,86.511,11.55922368]
[1773168674614,1.71129835,86.557,86.52,10.97988463]
[1773168674806,1.71129835,86.557,86.521,1.71077904]
[1773168675006,1.71129835,86.549,86.511,42.16806192]
[1773168675203,1.71129835,86.529,86.49,10.97988463]
[1773168675404,1.44413507,86.557,86.451,46.2688566]
[1773168675405,10.97988463,86.52,86.487,11.56243094]
[1773168675605,1.71129835,86.509,86.471,40.47599773]
[1773168676023,1.71129835,86.518,86.481,1.71077904]
[1773168676908,1.71129835,86.499,86.471,11.56457078]
[1773168677414,1.71129835,86.489,86.451,1.71077904]
[1773168677610,1.71129835,86.487,86.452,11.56711238]
[1773168677914,1.71129835,86.487,86.452,40.48489334]
[1773168678129,1.71129835,86.479,86.442,11.56845052]
[1773168679022,1.71129835,86.469,86.433,11.5696551]
[1773168679200,12.58464448,86.48,86.441,1.65598174]
[1773168679404,1.60475985,86.479,86.441,1.65598174]
[1773168680027,1.60475985,86.469,86.442,11.56845052]
[1773168680201,1.60475985,86.489,86.451,1.65598174]
[1773168680407,1.60475985,86.469,86.434,11.56939681]
[1773168680807,1.60475985,86.459,86.422,11.57112772]
[1773168681020,1.60475985,86.459,86.422,40.49894702]
[1773168681410,10.97988463,86.47,86.43,10.97988463]
[1773168681736,1.60475985,86.469,86.431,1.65598174]
[1773168682104,1.60475985,86.459,86.423,11.57099383]
[1773168682907,1.60475985,86.459,86.392,46.30039754]
[1773168682908,1.60475985,86.449,86.417,11.57166986]
[1773168683435,10.97988463,86.44,86.412,11.57233673]
[1773168683617,1.60475985,86.429,86.413,34.65434961]
[1773168683937,1.44606807,86.448,86.401,1.65598174]
[1773168684110,11.56778141,86.447,86.411,1.65598174]
[1773168684314,10.97988463,86.44,86.411,1.65598174]
[1773168685025,11.56778141,86.447,86.411,1.65598174]
[1773168685238,22.54592673,86.46,86.421,1.65598174]
[1773168685913,10.97988463,86.46,86.421,1.65598174]
[1773168686114,12.42553006,86.48,86.431,1.65598174]
[1773168686420,10.97988463,86.47,86.431,1.65598174]
[1773168686818,11.56096094,86.498,86.461,1.65598174]
[1773168687731,13.00608105,86.498,86.461,1.65598174]
[1773168687929,10.97988463,86.52,86.481,1.65598174]
[1773168688140,11.55815485,86.519,86.483,1.65598174]
[1773168689047,10.97988463,86.5,86.468,13.22083854]
[1773168689419,1.44498501,86.509,86.471,1.65598174]
[1773168689837,2.88992137,86.509,86.471,1.65598174]
[1773168690332,11.55962454,86.508,86.473,1.65598174]
[1773168690724,11.55962454,86.508,86.481,1.65598174]
[1773168690924,11.55828844,86.518,86.481,1.65598174]
[1773168691140,40.45400956,86.518,86.481,1.65598174]
[1773168691536,11.55828844,86.518,86.481,1.65598174]
[1773168692632,11.55828844,86.518,86.482,11.56309983]
[1773168692825,11.55828844,86.518,86.483,1.65598174]
[1773168693636,11.55779567,86.522,86.491,1.65598174]
[1773168694044,10.97988463,86.52,86.491,1.65598174]
[1773168694747,10.97988463,86.52,86.482,40.47084941]
[1773168694748,1.40464948,86.509,86.478,11.56358575]
[1773168695333,12.37807917,86.49,86.45,12.63586637]
[1773168695633,10.97988463,86.48,86.45,1.65598174]
[1773168695857,86.68616141,86.519,86.461,1.65598174]
[1773168695858,10.97988463,86.5,86.461,1.65598174]
[1773168696632,1.39181375,86.489,86.45,10.97988463]
[1773168696851,11.56082729,86.499,86.461,1.65598174]
[1773168697044,13.0059307,86.499,86.461,1.65598174]
[1773168697942,41.90799893,86.499,86.461,1.65598174]
[1773168698438,10.97988463,86.49,86.461,1.65598174]
[1773168699260,11.56216397,86.489,86.462,11.56577455]
[1773168699759,11.56216397,86.489,86.462,13.22175629]
[1773168700270,28.90206823,86.499,86.463,1.65598174]
[1773168700440,11.56096094,86.498,86.463,1.65598174]
[1773168701055,11.56096094,86.498,86.465,1.65598174]
[1773168701642,115.86096094,86.498,86.465,1.65598174]
[1773168701841,10.97988463,86.49,86.465,1.65598174]
[1773168702254,10.97988463,86.48,86.454,11.56677039]
[1773168702439,12.33492356,86.48,86.446,1.65598174]
[1773168702638,146.20848341,86.498,86.451,1.65598174]
[1773168702639,12.33492356,86.49,86.451,1.65598174]
[1773168702836,115.86096094,86.498,86.461,1.65598174]
[1773168703461,115.86096094,86.498,86.463,1.65598174]
[1773168703656,1.34915382,86.497,86.463,1.65598174]
[1773168703838,1.34915382,86.489,86.462,11.56577455]
[1773168704762,1.34915382,86.489,86.455,1.65598174]
[1773168705461,10.97988463,86.49,86.457,1.65598174]
[1773168705462,11.56229765,86.488,86.457,1.65598174]
[1773168706052,11.5610946,86.497,86.461,1.65598174]
[1773168706667,1.32628162,86.479,86.446,11.56788799]
[1773168706965,1.32628162,86.479,86.447,1.63927843]
[1773168707753,1.32072681,86.477,86.446,11.56788799]
[1773168707964,10.97988463,86.47,86.436,1.63927843]
[1773168709169,11.56483826,86.469,86.438,1.63927843]
[1773168711153,10.97988463,86.46,86.433,11.56961804]
[1773168711365,10.97988463,86.46,86.434,1.56752093]
[1773168711551,1.29913833,86.467,86.434,1.56752093]
[1773168712868,10.97988463,86.46,86.434,1.56752093]
[1773168713072,1.29913833,86.467,86.434,1.56752093]
[1773168713268,10.97988463,86.46,86.434,1.56752093]
[1773168713467,12.26347382,86.45,86.414,1.56752093]
[1773168714369,1.27852475,86.439,86.404,1.56752093]
[1773168714569,1.27852475,86.439,86.377,52.0]
[1773168714570,1.27852475,86.429,86.391,1.56752093]
[1773168714791,10.97988463,86.41,86.387,11.57576672]
[1773168715158,1.27852475,86.419,86.388,1.56752093]
[1773168715464,10.97988463,86.41,86.38,0.2]
[1773168715659,10.97988463,86.4,86.38,0.2]
[1773168716876,10.97988463,86.39,86.362,11.57916676]
[1773168717057,10.97988463,86.39,86.362,13.14668769]
[1773168717371,10.97988463,86.4,86.365,1.56752093]
[1773168717953,10.97988463,86.39,86.356,1.56752093]
[1773168718168,1.26367778,86.389,86.356,1.56752093]
[1773168718373,10.97988463,86.39,86.356,1.56752093]
[1773168718985,1.25884204,86.398,86.356,1.56752093]
[1773168719295,10.97988463,86.39,86.356,1.56752093]
[1773168719773,11.57510156,86.393,86.361,1.56752093]
[1773168720360,10.97988463,86.39,86.361,1.56752093]
[1773168720563,11.57510156,86.393,86.361,1.56752093]
[1773168720564,10.97988463,86.38,86.361,1.56752093]
[1773168720766,10.97988463,86.39,86.361,1.56752093]
[1773168721364,10.97988463,86.38,86.361,1.56752093]
[1773168721683,12.62302789,86.368,86.34,52.47419513]
[1773168722083,10.97988463,86.38,86.341,1.56752093]
[1773168722388,11.57608381,86.385,86.351,1.56752093]
[1773168722985,10.97988463,86.36,86.34,40.89209207]
[1773168723287,10.97988463,86.36,86.34,0.2]
[1773168723482,0.83548385,86.349,86.32,0.2]
[1773168723670,11.58225135,86.339,86.32,0.2]
[1773168724783,11.58104414,86.348,86.32,0.2]
[1773168724987,10.97988463,86.34,86.32,0.2]
[1773168725362,11.57983718,86.357,86.321,1.56752093]
[1773168725570,10.97988463,86.35,86.321,1.56752093]
[1773168725765,10.97988463,86.34,86.32,0.2]
[1773168725991,40.52943014,86.357,86.293,1.56752093]
[1773168725992,0.62651186,86.329,86.293,1.56752093]
[1773168726172,0.62651186,86.329,86.28,0.2]
[1773168726173,10.97988463,86.3,86.28,0.2]
[1773168726368,10.97988463,86.31,86.28,0.2]
[1773168726694,0.62210301,86.353,86.291,1.56752093]
[1773168726871,0.62210301,86.353,86.303,1.56752093]
[1773168726872,10.97988463,86.34,86.303,1.56752093]
[1773168727070,11.58225135,86.339,86.303,1.56752093]
[1773168727682,11.58054734,86.352,86.32,11.04542429]
[1773168727879,11.04542429,86.35,86.321,1.56752093]
[1773168728492,11.04542429,86.34,86.321,1.56752093]
[1773168728680,11.04542429,86.35,86.312,1.56752093]
[1773168729002,11.04542429,86.35,86.321,1.56752093]
[1773168729172,11.57822829,86.369,86.331,1.56752093]
[1773168729582,11.57822829,86.369,86.341,1.56752093]
[1773168729795,11.5768879,86.379,86.341,1.56752093]
[1773168730368,11.04542429,86.35,86.32,1.56752093]
[1773168731582,11.04542429,86.37,86.331,1.56752093]
[1773168731785,11.04542429,86.36,86.331,1.56752093]
[1773168732308,11.57822829,86.369,86.331,1.56752093]
[1773168732508,11.04542429,86.36,86.331,1.56752093]
[1773168733179,1.44729529,86.368,86.34,11.04542429]
[1773168733382,0.59516535,86.368,86.33,11.04542429]
[1773168733720,11.04542429,86.35,86.317,1.56752093]
[1773168734002,11.04542429,86.34,86.318,11.58506916]
[1773168735100,11.04542429,86.35,86.318,11.58506916]
[1773168735302,11.04542429,86.35,86.318,13.15259009]
[1773168735502,11.04542429,86.35,86.319,1.56752093]
[1773168735705,11.57930931,86.361,86.331,1.56752093]
[1773168735888,13.02550682,86.369,86.331,1.56752093]
[1773168736283,11.57773515,86.373,86.341,1.56752093]
[1773168736499,11.04542429,86.37,86.341,1.56752093]
[1773168736698,11.04542429,86.36,86.321,1.56752093]
[1773168736891,11.04542429,86.35,86.321,1.56752093]
[1773168737488,11.58091002,86.349,86.321,1.56752093]
[1773168738610,40.53318508,86.349,86.316,1.56752093]
[1773168738996,11.58091002,86.349,86.321,1.56752093]
[1773168739518,11.04542429,86.35,86.322,13.16096871]
[1773168740490,11.58091002,86.349,86.323,1.57643638]
[1773168740789,11.57849641,86.367,86.331,1.57643638]
[1773168741106,11.04542429,86.36,86.331,1.57643638]
[1773168741307,11.04542429,86.34,86.311,1.57643638]
[1773168741489,11.04542429,86.36,86.321,1.57643638]
[1773168741893,11.04542429,86.34,86.31,1.57643638]
[1773168742391,11.04542429,86.33,86.301,1.57643638]
[1773168742786,11.04542429,86.33,86.303,1.57643638]
[1773168743008,11.04542429,86.32,86.293,1.57643638]
[1773168743209,2.00716394,86.338,86.28,0.2]
[1773168743210,11.04542429,86.31,86.28,0.2]
[1773168743517,11.04542429,86.3,86.28,0.2]
[1773168743703,0.55600804,86.309,86.28,0.2]
[1773168743912,11.04542429,86.3,86.28,0.2]
[1773168744108,0.55600804,86.324,86.281,1.57643638]
[1773168744411,11.58359299,86.329,86.292,1.57643638]
[1773168744714,11.04542429,86.32,86.292,1.57643638]
[1773168744893,11.04542429,86.31,86.282,1.57643638]
[1773168745094,11.04542429,86.32,86.282,1.57643638]
[1773168745915,41.9905246,86.329,86.282,1.57643638]
[1773168746101,11.04542429,86.32,86.282,1.57643638]
[1773168746817,11.04542429,86.31,86.284,1.57643638]
[1773168747021,11.04542429,86.3,86.28,0.2]
[1773168747521,11.04542429,86.31,86.282,1.57643638]
[1773168748099,11.58493495,86.319,86.282,1.57643638]
[1773168748314,11.58493495,86.319,86.281,11.5900372]
[1773168748315,11.58320943,86.332,86.291,1.57643638]
[1773168748811,11.04542429,86.32,86.295,1.57643638]
[1773168749195,11.04542429,86.33,86.295,1.57643638]
[1773168750809,28.95241577,86.349,86.301,1.57643638]
[1773168751003,28.95241577,86.349,86.311,1.57643638]
[1773168751205,11.58104414,86.348,86.311,1.57643638]
[1773168751401,11.58048752,86.353,86.321,1.57643638]
[1773168752124,11.04542429,86.35,86.321,1.57643638]
[1773168752909,11.58091002,86.349,86.321,1.57643638]
[1773168753310,11.579569,86.359,86.323,1.57643638]
[1773168753623,11.04542429,86.35,86.323,1.57643638]
[1773168754737,11.57905012,86.363,86.331,1.57643638]
[1773168755026,11.04542429,86.36,86.333,1.57643638]
[1773168755433,0.51860048,86.349,86.298,1.57643638]
[1773168755610,0.51860048,86.349,86.301,1.57643638]
[1773168755611,11.04542429,86.34,86.301,1.57643638]
[1773168755926,11.04542429,86.33,86.301,1.57643638]
[1773168757024,11.58359299,86.329,86.303,1.57643638]
[1773168758011,11.58359299,86.329,86.298,11.58767179]
[1773168758419,11.58359299,86.329,86.299,1.57643638]
[1773168758621,40.54257548,86.329,86.299,1.57643638]
[1773168760430,40.54257548,86.329,86.301,1.57643638]
[1773168763011,11.58359299,86.329,86.303,1.57643638]
[1773168763212,11.58274125,86.336,86.31,11.04542429]
[1773168763414,11.58274125,86.336,86.311,1.57643638]
[1773168765117,11.04542429,86.32,86.292,13.16486585]
[1773168765615,11.04542429,86.31,86.281,1.57643638]
[1773168765817,11.04542429,86.3,86.28,0.2]
[1773168766212,11.04542429,86.3,86.27,0.2]
[1773168766424,11.04542429,86.3,86.271,1.57643638]
[1773168766827,11.58627721,86.309,86.273,1.51142016]
[1773168767224,40.55197024,86.309,86.273,1.51142016]
[1773168767621,11.04542429,86.3,86.272,11.59124629]
[1773168767831,11.04542429,86.29,86.27,1.71142016]
[1773168768329,11.04542429,86.28,86.27,0.2]
[1773168768731,11.04542429,86.3,86.271,11.59138064]
[1773168768927,11.04542429,86.3,86.27,0.2]
[1773168768928,11.04542429,86.29,86.27,0.2]
[1773168769431,1.44830143,86.308,86.272,1.55079665]
[1773168769633,11.04542429,86.31,86.281,1.55079665]
[1773168770418,41.99538918,86.319,86.281,1.55079665]
[1773168770620,11.04542429,86.31,86.281,1.55079665]
[1773168774640,40.55197024,86.309,86.281,1.55079665]
[1773168775535,11.58627721,86.309,86.282,1.55079665]
[1773168775741,11.58507811,86.318,86.291,1.55079665]
[1773168776045,11.58359299,86.329,86.291,1.55079665]
[1773168776342,11.58225135,86.339,86.301,1.55079665]
[1773168777022,40.53787974,86.339,86.303,1.55079665]
[1773168777231,11.58225135,86.339,86.303,1.55079665]
[1773168777621,11.04542429,86.33,86.294,1.55079665]
[1773168777935,11.04542429,86.32,86.294,1.55079665]
[1773168778830,11.04542429,86.31,86.286,1.55079665]
[1773168779031,11.04542429,86.31,86.27,11.24542429]
[1773168779032,0.45549584,86.308,86.277,1.55079665]
[1773168779233,40.55197024,86.309,86.277,1.55079665]
[1773168780233,11.04542429,86.3,86.277,1.55079665]
[1773168780445,11.04542429,86.3,86.27,0.2]
[1773168780629,11.04542429,86.3,86.27,1.75079665]
[1773168780829,11.04542429,86.29,86.27,0.2]
[1773168781031,11.04542429,86.28,86.26,0.2]
[1773168781243,11.04542429,86.28,86.25,1.75079665]
[1773168782333,11.59030586,86.279,86.25,1.75079665]
[1773168782852,11.04542429,86.26,86.23,1.65079665]
[1773168783232,11.04542429,86.27,86.233,1.55079665]
[1773168783427,11.04542429,86.26,86.233,1.55079665]
[1773168784025,11.04542429,86.25,86.23,0.1]
[1773168784230,0.44491827,86.254,86.23,0.1]
[1773168784547,11.59568176,86.239,86.204,11.60037146]
[1773168784728,11.04542429,86.23,86.205,1.55079665]
[1773168785434,0.44287509,86.235,86.197,11.60133183]
[1773168785652,11.04542429,86.25,86.211,1.55079665]
[1773168785957,11.04542429,86.26,86.221,1.55079665]
[1773168786260,11.59299319,86.259,86.221,1.55079665]
[1773168786430,11.59164937,86.269,86.222,11.59796803]
[1773168786629,11.04542429,86.29,86.251,1.55079665]
[1773168787231,11.58782895,86.298,86.261,1.55079665]
[1773168787442,11.58782895,86.298,86.271,1.55079665]
[1773168787838,11.58627721,86.309,86.271,1.55079665]
[1773168788033,40.55197024,86.309,86.271,1.55079665]
[1773168788238,11.58627721,86.309,86.271,1.55079665]
[1773168788868,11.58627721,86.309,86.273,1.55079665]
[1773168789033,11.58627721,86.309,86.281,1.55079665]
[1773168789733,40.55197024,86.309,86.281,1.55079665]
[1773168790449,0.43109952,86.308,86.272,11.59124629]
[1773168791044,11.5865457,86.307,86.272,13.14204294]
[1773168791434,11.5865457,86.307,86.273,1.55079665]
[1773168792433,11.5865457,86.307,86.274,13.14177423]
[1773168792639,11.5865457,86.307,86.275,1.55079665]
[1773168792843,11.05220427,86.31,86.275,1.55079665]
[1773168793162,1.4478988,86.332,86.291,1.55079665]
[1773168793163,11.05220427,86.33,86.291,1.55079665]
[1773168793356,40.54163625,86.331,86.274,40.56842153]
[1773168793357,11.58332464,86.331,86.301,1.55079665]
[1773168793738,11.05220427,86.34,86.311,1.55079665]
[1773168793953,11.58064179,86.351,86.311,1.55079665]
[1773168794143,11.58064179,86.351,86.321,1.55079665]
[1773168794551,11.05220427,86.35,86.321,1.55079665]
[1773168794749,11.05220427,86.35,86.283,3.69383402]
[1773168795050,11.05220427,86.35,86.311,1.55079665]
[1773168795242,40.52849152,86.359,86.321,1.55079665]
[1773168795451,11.579569,86.359,86.321,1.55079665]
[1773168796540,11.05220427,86.34,86.312,1.55079665]
[1773168796735,11.05220427,86.34,86.3,11.05220427]
[1773168796736,42.40091135,86.349,86.301,1.55079665]
[1773168796934,40.9532976,86.349,86.301,1.55079665]
[1773168797136,11.58091002,86.349,86.311,1.55079665]
[1773168797552,40.53318508,86.349,86.311,1.55079665]
[1773168797752,11.05220427,86.34,86.302,1.55079665]
[1773168798738,40.53787974,86.339,86.302,1.55079665]
[1773168798959,11.05220427,86.31,86.283,1.55079665]
[1773168799146,11.05220427,86.32,86.283,1.55079665]
[1773168799541,11.05220427,86.31,86.283,1.55079665]
[1773168800244,11.05220427,86.32,86.283,1.55079665]
[1773168800769,11.05220427,86.33,86.291,1.36809732]
[1773168801062,11.58359299,86.329,86.301,1.36809732]
[1773168801256,40.54257548,86.329,86.301,1.36809732]
[1773168802062,11.58278143,86.336,86.311,1.36809732]
[1773168802945,11.58278143,86.336,86.312,11.5858745]
[1773168803144,11.58278143,86.336,86.313,1.36809732]
[1773168803942,11.05220427,86.32,86.293,1.36809732]
[1773168805061,11.58493495,86.319,86.293,1.36809732]
[1773168805639,40.54727232,86.319,86.284,1.36809732]
[1773168806044,11.05220427,86.31,86.275,1.36809732]
[1773168806247,11.05220427,86.3,86.265,1.36809732]
[1773168806664,11.05220427,86.29,86.265,1.36809732]
[1773168806964,11.58896267,86.289,86.265,1.36809732]
[1773168808468,11.05220427,86.28,86.255,1.36809732]
[1773168809570,40.56136934,86.289,86.255,1.36809732]
[1773168809868,40.56136934,86.289,86.216,50.08875077]
[1773168809869,11.05220427,86.31,86.271,1.36809732]
[1773168810546,11.05220427,86.3,86.271,1.36809732]
[1773168810947,11.58530317,86.317,86.281,1.36809732]
[1773168811152,11.58530317,86.317,86.291,1.36809732]
[1773168811649,11.58359299,86.329,86.292,1.36809732]
[1773168812347,40.54257548,86.329,86.292,1.36809732]
[1773168812553,11.05220427,86.32,86.292,1.36809732]
[1773168813265,11.05220427,86.3,86.27,11.05220427]
[1773168813563,1.37829901,86.309,86.27,11.05220427]
[1773168814169,11.05220427,86.3,86.271,11.59138064]
[1773168814968,11.05220427,86.3,86.261,11.5927244]
[1773168815273,11.05220427,86.3,86.262,1.36809732]
[1773168815468,40.55244009,86.308,86.271,1.36809732]
[1773168815656,11.05220427,86.3,86.271,1.36809732]
[1773168816262,40.55666924,86.299,86.271,1.36809732]
[1773168816471,11.05220427,86.29,86.262,1.36809732]
[1773168816775,1.37829901,86.298,86.262,1.36809732]
[1773168817378,11.5870876,86.303,86.271,1.36809732]
[1773168817571,11.05220427,86.3,86.271,1.36809732]
[1773168817875,11.5870876,86.303,86.271,1.36809732]
[1773168818054,11.05220427,86.3,86.271,1.36809732]